bitfinex/quotes_BTCUSD_20220205
["timestamp","ask_amount","ask_price","bid_price","bid_amount"]
[1644085902732,0.40747007,41723.0,41708.0,0.335296]
[1644085902933,0.40747007,41723.0,41707.0,0.27195202]
[1644085903137,0.38691916,41723.0,41708.0,0.05]
[1644085903579,0.38691916,41723.0,41709.0,0.05]
[1644085903781,0.40144957,41721.0,41713.0,0.00071236]
[1644085904779,0.40144957,41721.0,41711.0,0.05]
[1644085904979,0.75,41720.0,41711.0,0.04571235]
[1644085905181,0.00428765,41717.0,41711.0,0.04571235]
[1644085905379,0.00428765,41717.0,41712.0,0.335296]
[1644085905581,0.40126075,41721.0,41713.0,0.29166375]
[1644085905785,0.9356,41734.0,41714.0,0.75]
[1644085905982,0.4799,41733.0,41715.0,0.335296]
[1644085906283,0.335296,41729.0,41725.0,0.01999528]
[1644085906481,0.48418765,41733.0,41725.0,0.01999528]
[1644085906683,0.00428765,41726.0,41725.0,0.01999528]
[1644085906882,0.39501587,41726.0,41725.0,0.01999528]
[1644085907326,0.39001587,41726.0,41725.0,0.01999528]
[1644085907724,0.25344673,41731.0,41725.0,0.01999528]
[1644085908027,0.3649,41733.0,41725.0,0.01999528]
[1644085908428,0.1193,41735.0,41725.0,0.01999528]
[1644085908624,0.9472,41740.0,41725.0,0.01999528]
[1644085908825,0.39719997,41735.0,41725.0,0.34337716]
[1644085909223,0.39719997,41735.0,41725.0,0.49337716]
[1644085909825,0.00071213,41732.0,41725.0,0.49337716]
[1644085910224,0.00071213,41732.0,41726.0,0.048]
[1644085910624,0.00071213,41732.0,41729.0,0.05]
[1644085910825,0.39719997,41735.0,41729.0,0.05]
[1644085911098,0.00071214,41731.0,41729.0,0.05]
[1644085911994,0.39719997,41735.0,41726.0,0.048]
[1644085912292,0.00071213,41732.0,41726.0,0.048]
[1644085912690,0.00071213,41732.0,41726.0,0.31953161]
[1644085912893,0.00071213,41732.0,41726.0,0.41953161]
[1644085913296,0.39719997,41735.0,41726.0,0.41953161]
[1644085913495,0.00071214,41731.0,41726.0,0.41953161]
[1644085913698,0.00071214,41731.0,41726.0,0.36728352]
[1644085913894,0.00071214,41731.0,41726.0,0.26728352]
[1644085914096,0.00071214,41731.0,41726.0,0.36728352]
[1644085914295,0.39719997,41735.0,41726.0,0.36728352]
[1644085914727,0.00071215,41731.0,41726.0,0.36728352]
[1644085915226,0.00071215,41731.0,41726.0,0.26728352]
[1644085915625,0.39719997,41735.0,41726.0,0.26728352]
[1644085915827,0.00071215,41731.0,41726.0,0.26728352]
[1644085916630,0.00071215,41731.0,41729.0,0.05]
[1644085916828,0.39719997,41735.0,41729.0,0.05]
[1644085917029,0.00071215,41731.0,41729.0,0.05]
[1644085917430,0.00071215,41731.0,41726.0,0.36728352]
[1644085917832,0.00071215,41731.0,41726.0,0.1]
[1644085918030,0.39719997,41735.0,41725.0,0.26862318]
[1644085918229,0.00071215,41731.0,41725.0,0.16862318]
[1644085918494,0.00071215,41731.0,41726.0,0.26466259]
[1644085919284,0.39719997,41735.0,41726.0,0.2679543]
[1644085919584,0.00071215,41731.0,41726.0,0.2679543]
[1644085920184,0.00071215,41731.0,41729.0,0.05]
[1644085920386,0.39719997,41735.0,41726.0,0.15]
[1644085920585,0.00071215,41731.0,41726.0,0.31501423]
[1644085920784,0.00071215,41731.0,41726.0,0.15]
[1644085920985,0.36716882,41728.0,41726.0,0.15]
[1644085921184,0.36716882,41728.0,41727.0,0.335296]
[1644085921491,0.00071215,41731.0,41727.0,0.80207618]
[1644085921685,0.23819318,41737.0,41727.0,0.46678018]
[1644085921886,0.00071216,41730.0,41727.0,0.46678018]
[1644085922086,0.00071216,41730.0,41728.0,0.335296]
[1644085922328,0.00071216,41730.0,41729.0,0.335296]
[1644085922527,0.3140709,41730.0,41728.0,0.15]
[1644085922729,0.31335874,41730.0,41728.0,0.15]
[1644085923729,0.31335874,41730.0,41726.0,0.15]
[1644085924329,0.31407089,41730.0,41727.0,0.26660613]
[1644085925132,0.31335874,41730.0,41726.0,0.25]
[1644085925532,0.00071215,41731.0,41729.0,0.05]
[1644085925733,0.00071215,41731.0,41730.0,0.70859558]
[1644085925988,0.00071215,41731.0,41730.0,0.85859558]
[1644085926482,0.006,41742.0,41730.0,0.85859558]
[1644085926686,0.00071212,41733.0,41732.0,0.385296]
[1644085926882,0.00071212,41733.0,41732.0,0.77068612]
[1644085927082,0.00071212,41733.0,41732.0,0.86868612]
[1644085927681,0.006,41742.0,41733.0,0.335296]
[1644085927883,0.006,41742.0,41733.0,0.1]
[1644085928084,0.006,41742.0,41739.0,0.05]
[1644085928085,0.00284798,41741.0,41739.0,0.05]
[1644085928282,0.00284798,41741.0,41738.0,0.048]
[1644085928881,0.006,41742.0,41738.0,0.048]
[1644085929081,0.22191784,41740.0,41738.0,0.048]
[1644085929486,0.22191784,41740.0,41735.0,0.21930649]
[1644085929933,0.22191784,41740.0,41735.0,0.11930649]
[1644085930136,0.22262989,41740.0,41735.0,0.11930649]
[1644085930335,0.00071205,41740.0,41735.0,0.11930649]
[1644085930635,0.00071205,41740.0,41736.0,0.335296]
[1644085930838,0.00071205,41740.0,41738.0,0.335296]
[1644085931035,0.00071205,41740.0,41737.0,0.26926861]
[1644085931233,0.006,41742.0,41737.0,0.31926861]
[1644085931433,0.25200987,41741.0,41737.0,0.41926861]
[1644085931633,0.00071203,41741.0,41737.0,0.41926861]
[1644085932334,0.006,41742.0,41737.0,0.41426861]
[1644085932533,0.00067061,41741.0,41737.0,0.145]
[1644085932937,0.27538583,41740.0,41736.0,0.05]
[1644085933338,0.40202652,41736.0,41735.0,0.16894159]
[1644085933588,0.40202652,41736.0,41735.0,0.02094159]
[1644085934787,0.006,41742.0,41735.0,0.07094159]
[1644085934986,0.006,41742.0,41740.0,0.05]
[1644085935186,0.006,41742.0,41737.0,0.335296]
[1644085935388,0.006,41742.0,41736.0,0.26496592]
[1644085935585,0.006,41742.0,41737.0,0.05]
[1644085935784,0.2600626,41742.0,41740.0,0.05]
[1644085936186,0.2607332,41742.0,41736.0,0.15]
[1644085936384,0.0066706,41742.0,41738.0,0.385296]
[1644085936787,0.0066706,41742.0,41738.0,0.585296]
[1644085937090,0.0066706,41742.0,41740.0,0.335296]
[1644085937332,0.002,41752.0,41743.0,0.20099318]
[1644085937533,0.24163389,41748.0,41743.0,0.20099318]
[1644085937934,0.325295,41747.0,41743.0,0.20099318]
[1644085938435,0.31182501,41745.0,41743.0,0.20099318]
[1644085942283,0.0006743,41746.0,41744.0,0.26789087]
[1644085942480,0.0006743,41746.0,41744.0,0.31789087]
[1644085942681,0.0006743,41746.0,41745.0,0.28275658]
[1644085942878,0.0006743,41746.0,41745.0,0.38275658]
[1644085943081,0.0006743,41746.0,41745.0,0.43275658]
[1644085943283,0.002,41752.0,41745.0,0.53275658]
[1644085943583,0.00067429,41748.0,41745.0,0.25]
[1644085944283,0.00067429,41748.0,41745.0,0.15]
[1644085944483,0.002,41752.0,41745.0,0.15]
[1644085944731,0.00067436,41749.0,41745.0,0.1]
[1644085944935,0.00067436,41749.0,41745.0,0.15]
[1644085945132,0.00067436,41749.0,41745.0,0.1]
[1644085945133,0.31363807,41747.0,41745.0,0.1]
[1644085945633,0.31363807,41747.0,41745.0,0.05]
[1644085945835,0.31363807,41747.0,41744.0,0.148]
[1644085946035,0.31363807,41747.0,41744.0,0.098]
[1644085946235,0.31363807,41747.0,41744.0,0.048]
[1644085948338,0.31363807,41747.0,41744.0,2.048]
[1644085948581,0.31363807,41747.0,41745.0,0.334906]
[1644085948781,0.31363807,41747.0,41745.0,0.534906]
[1644085948983,0.31363807,41747.0,41746.0,0.334906]
[1644085949180,0.31363807,41747.0,41745.0,0.2]
[1644085949782,0.31363807,41747.0,41744.0,2.0]
[1644085950182,0.31363807,41747.0,41745.0,0.334906]
[1644085951281,0.31363807,41747.0,41744.0,2.0]
[1644085952333,0.31363807,41747.0,41745.0,0.334906]
[1644085952536,0.00020733,41748.0,41745.0,0.334906]
[1644085952732,0.00020733,41748.0,41745.0,0.80594921]
[1644085952932,0.002,41752.0,41745.0,0.47104321]
[1644085953136,0.00067386,41749.0,41747.0,0.334906]
[1644085953331,0.00067386,41749.0,41747.0,0.384906]
[1644085953731,0.00067386,41749.0,41748.0,0.27665817]
[1644085954132,0.002,41752.0,41748.0,0.27665817]
[1644085954333,0.00167384,41751.0,41748.0,0.27665817]
[1644085955336,0.001,41751.0,41748.0,0.27665817]
[1644085955635,0.001,41751.0,41747.0,0.05]
[1644085955836,0.001,41751.0,41746.0,0.05]
[1644085956093,0.001,41751.0,41745.0,0.21806488]
[1644085956694,0.00067384,41750.0,41745.0,0.21806488]
[1644085957094,0.27289989,41754.0,41745.0,0.40855185]
[1644085957292,0.27289989,41754.0,41746.0,0.05]
[1644085958994,0.00020783,41752.0,41746.0,0.05]
[1644085959194,0.00020783,41752.0,41745.0,0.2]
[1644085959394,0.00020783,41752.0,41745.0,0.1]
[1644085959593,0.00020783,41752.0,41744.0,2.1]
[1644085959594,0.00020783,41752.0,41744.0,2.2]
[1644085959836,0.00020783,41752.0,41745.0,0.334906]
[1644085960037,0.27289989,41754.0,41745.0,0.334906]
[1644085960244,0.00020782,41752.0,41745.0,0.1]
[1644085961141,0.00020782,41752.0,41745.0,0.383979]
[1644085961438,0.27289989,41754.0,41745.0,0.383979]
[1644085961638,0.00067432,41752.0,41745.0,0.383979]
[1644085962539,0.48937398,41754.0,41745.0,0.283979]
[1644085962740,0.00068946,41752.0,41745.0,0.383979]
[1644085963141,0.00068946,41752.0,41745.0,0.433979]
[1644085963338,0.00068946,41752.0,41745.0,0.383979]
[1644085963579,0.27289989,41754.0,41745.0,0.433979]
[1644085963780,0.27289989,41754.0,41745.0,0.43620254]
[1644085963979,0.00068946,41752.0,41745.0,0.38620254]
[1644085964180,0.29076723,41746.0,41745.0,0.45644807]
[1644085964482,0.92234104,41758.0,41757.0,1.45248829]
[1644085964679,0.55514104,41758.0,41757.0,1.45248829]
[1644085964879,0.92472713,41758.0,41757.0,1.45248829]
[1644085967931,0.92472713,41758.0,41757.0,1.44648829]
[1644085968332,0.69618609,41758.0,41757.0,1.44648829]
[1644085971079,0.69618609,41758.0,41757.0,1.56648829]
[1644085972482,0.69618609,41758.0,41757.0,0.32392063]
[1644085972684,0.69618609,41758.0,41752.0,0.01900774]
[1644085972685,0.75,41757.0,41752.0,0.01900774]
[1644085972886,0.3256,41756.0,41752.0,0.01900774]
[1644085973084,0.0658568,41753.0,41752.0,0.01839805]
[1644085973389,0.0658568,41753.0,41747.0,0.00067409]
[1644085973390,0.3256,41751.0,41747.0,0.00067393]
[1644085973585,0.24997401,41748.0,41747.0,0.00067393]
[1644085973785,0.32917403,41750.0,41747.0,0.00067393]
[1644085973983,0.3256,41749.0,41747.0,0.00067393]
[1644085974383,0.3256,41749.0,41744.0,0.32196332]
[1644085974584,0.75,41752.0,41746.0,0.00067393]
[1644085974833,0.23065902,41747.0,41746.0,0.00067393]
[1644085975131,0.75,41752.0,41746.0,0.00067393]
[1644085975132,0.0861579,41749.0,41746.0,0.00067393]
[1644085975534,0.3256,41748.0,41746.0,0.00067393]
[1644085975733,0.3256,41748.0,41743.0,0.20099318]
[1644085975939,0.3256,41747.0,41745.0,0.00067393]
[1644085976835,0.3256,41747.0,41743.0,0.20099318]
[1644085977036,0.2730738,41748.0,41744.0,0.00067397]
[1644085977235,0.75,41752.0,41744.0,0.00067397]
[1644085978036,0.75,41752.0,41744.0,0.26789928]
[1644085978237,0.75,41752.0,41746.0,0.00067394]
[1644085978493,0.00067381,41754.0,41746.0,0.34912062]
[1644085978685,0.00067381,41754.0,41747.0,0.29546885]
[1644085979285,0.13838323,41758.0,41751.0,0.05]
[1644085979489,0.00067382,41754.0,41752.0,0.3132896]
[1644085980385,0.001,41758.0,41752.0,0.5132896]
[1644085980786,0.00067382,41755.0,41752.0,0.5132896]
[1644085981185,1.42366469,41759.0,41752.0,0.5132896]
[1644085981385,1.40413749,41759.0,41752.0,0.5132896]
[1644085981785,1.40413749,41759.0,41751.0,0.1]
[1644085981985,1.40413749,41759.0,41752.0,0.26734538]
[1644085982432,0.07555154,41758.0,41752.0,0.26734538]
[1644085984334,0.0002439,41757.0,41752.0,0.26734538]
[1644085985336,0.07555154,41758.0,41752.0,0.26734538]
[1644085985536,0.00071136,41757.0,41752.0,0.26734538]
[1644085986481,1.40413749,41759.0,41751.0,0.2]
[1644085986681,1.40413749,41759.0,41751.0,0.10071145]
[1644085986882,0.00071136,41757.0,41751.0,0.10071145]
[1644085987081,0.00071136,41757.0,41751.0,0.15071145]
[1644085987280,0.00071136,41757.0,41751.0,0.10071145]
[1644085987482,0.00071136,41757.0,41751.0,0.05071145]
[1644085987682,1.40413749,41759.0,41752.0,0.26983892]
[1644085987881,0.00071135,41757.0,41752.0,0.26983892]
[1644085988885,1.40413749,41759.0,41752.0,0.26983892]
[1644085989082,0.00071136,41757.0,41752.0,0.26983892]
[1644085990130,1.40413749,41759.0,41752.0,0.26983892]
[1644085990330,0.00071136,41757.0,41751.0,0.20071145]
[1644085990530,0.29750005,41755.0,41751.0,0.10071145]
[1644085991133,0.29750005,41755.0,41751.0,0.05071145]
[1644085991332,0.29750005,41755.0,41751.0,0.05]
[1644085991537,0.29750005,41755.0,41751.0,0.04471145]
[1644085991734,0.29750005,41755.0,41751.0,0.09471145]
[1644085992136,0.006,41752.0,41751.0,0.04471145]
[1644085992336,0.25,41751.0,41749.0,0.36156313]
[1644085992537,0.25,41751.0,41749.0,0.36551682]
[1644085992938,0.25,41751.0,41749.0,0.1]
[1644085993236,0.25725171,41750.0,41749.0,0.1]
[1644085993494,0.25,41751.0,41744.0,0.46390041]
[1644085993689,0.25,41751.0,41744.0,0.36390041]
[1644085993889,0.25,41751.0,41747.0,0.00046807]
[1644085994690,0.22672164,41750.0,41747.0,0.00046807]
[1644085994889,0.22672164,41750.0,41744.0,0.46564754]
[1644085995089,0.22672164,41750.0,41747.0,0.00046808]
[1644085995291,0.05,41752.0,41747.0,0.00046808]
[1644085996093,0.05,41752.0,41744.0,0.46945178]
[1644085996291,0.26881463,41754.0,41747.0,0.00071149]
[1644085996491,0.05,41754.0,41747.0,0.00071149]
[1644085997335,0.05,41754.0,41747.0,0.29291002]
[1644085997535,0.05,41754.0,41748.0,0.29506825]
[1644085997737,0.00071137,41755.0,41748.0,0.34506825]
[1644085998138,0.00071137,41755.0,41749.0,0.048]
[1644085998336,0.00071137,41755.0,41754.0,0.37173812]
[1644085998537,0.03,41757.0,41754.0,0.41973812]
[1644085998837,0.00071138,41755.0,41754.0,0.56973812]
[1644085999635,0.03,41757.0,41754.0,0.56973812]
[1644086000035,0.03024447,41757.0,41754.0,0.198]
[1644086000236,0.03024447,41757.0,41755.0,0.28895668]
[1644086000437,0.03024447,41757.0,41756.0,0.048]
[1644086000637,0.03024447,41757.0,41756.0,0.33513395]
[1644086000838,0.03,41757.0,41756.0,0.48513395]
[1644086001089,0.03,41757.0,41756.0,0.198]
[1644086001288,0.03,41757.0,41756.0,0.148]
[1644086001490,0.03,41757.0,41756.0,0.048]
[1644086001991,0.03,41757.0,41750.0,0.33777785]
[1644086002187,0.20300242,41756.0,41750.0,0.33777785]
[1644086002588,0.20300242,41756.0,41749.0,0.00071205]
[1644086002791,0.05,41754.0,41749.0,0.00071205]
[1644086003189,0.20300242,41756.0,41749.0,0.00071205]
[1644086003390,0.10975068,41757.0,41747.0,0.32002434]
[1644086003391,0.10975068,41757.0,41747.0,0.37002434]
[1644086003588,0.00071192,41755.0,41747.0,0.46073636]
[1644086003787,0.00071192,41755.0,41748.0,0.048]
[1644086004393,0.00071192,41755.0,41751.0,2.68375017]
[1644086004594,0.03,41757.0,41754.0,0.39834062]
[1644086004835,0.03,41757.0,41755.0,0.36129947]
[1644086005036,0.03,41757.0,41756.0,0.30098431]
[1644086005236,1.57658462,41764.0,41756.0,0.35098431]
[1644086005436,1.57658462,41764.0,41756.0,0.45098431]
[1644086006036,1.50716757,41764.0,41756.0,0.45098431]
[1644086006536,1.50716757,41764.0,41761.0,0.32176194]
[1644086006736,1.81840778,41767.0,41756.0,0.45098431]
[1644086006737,0.00688923,41767.0,41756.0,0.45098431]
[1644086007141,0.00688923,41767.0,41766.0,0.013]
[1644086007337,0.00688923,41767.0,41760.0,0.048]
[1644086007538,0.004,41768.0,41761.0,0.24283188]
[1644086007737,0.004,41768.0,41760.0,0.048]
[1644086008498,0.0007118,41766.0,41760.0,0.048]
[1644086009392,0.004,41768.0,41760.0,0.048]
[1644086009592,0.00071181,41765.0,41761.0,0.27126413]
[1644086009990,0.00071181,41765.0,41761.0,0.32126413]
[1644086010391,0.00071181,41765.0,41761.0,0.42126413]
[1644086010593,0.004,41768.0,41761.0,0.42126413]
[1644086010891,0.00071181,41765.0,41761.0,0.15]
[1644086011395,0.00071181,41765.0,41761.0,0.05]
[1644086011592,0.00071181,41765.0,41760.0,0.048]
[1644086011791,0.004,41768.0,41760.0,0.048]
[1644086011991,0.00071181,41765.0,41760.0,0.048]
[1644086012439,0.00071181,41765.0,41761.0,0.27611328]
[1644086012735,0.00071181,41765.0,41761.0,0.32611328]
[1644086013037,0.06681886,41765.0,41761.0,0.15]
[1644086013237,0.06681886,41765.0,41755.0,0.02162175]
[1644086013238,0.06619066,41758.0,41755.0,0.02162175]
[1644086013437,0.05,41757.0,41756.0,0.334906]
[1644086013735,0.00071181,41765.0,41753.0,0.31642022]
[1644086013937,0.19604947,41760.0,41753.0,0.31642022]
[1644086014135,0.19604947,41760.0,41754.0,0.334906]
[1644086014538,0.00071186,41761.0,41754.0,0.334906]
[1644086015141,0.00071186,41761.0,41760.0,0.34020341]
[1644086015335,0.00071186,41761.0,41753.0,0.31642022]
[1644086015336,0.05,41766.0,41758.0,2.41014113]
[1644086015539,0.00071187,41760.0,41759.0,0.334906]
[1644086015740,0.00071187,41760.0,41759.0,0.2]
[1644086016585,0.19914651,41764.0,41759.0,0.2]
[1644086016785,0.19914651,41764.0,41759.0,0.1]
[1644086016786,0.00071185,41762.0,41759.0,0.1]
[1644086017186,0.05,41761.0,41759.0,0.05]
[1644086017386,0.00071185,41762.0,41759.0,0.05]
[1644086017791,0.32074593,41762.0,41759.0,0.05]
[1644086018588,0.00071184,41763.0,41759.0,0.05]
[1644086018989,0.19914651,41764.0,41759.0,0.05]
[1644086019188,0.00071183,41763.0,41759.0,0.05]
[1644086020136,0.57154064,41764.0,41759.0,0.05]
[1644086020346,0.05,41760.0,41759.0,0.05]
[1644086020537,0.25084762,41755.0,41752.0,0.1]
[1644086020736,0.07292412,41756.0,41750.0,0.01939266]
[1644086020936,0.07292412,41756.0,41751.0,0.334906]
[1644086021137,0.05,41760.0,41750.0,0.01939266]
[1644086021537,0.00071192,41756.0,41748.0,0.26429282]
[1644086021736,0.24197925,41755.0,41748.0,0.26429282]
[1644086022438,0.24197925,41755.0,41748.0,0.05]
[1644086022837,0.00071194,41754.0,41747.0,0.00071205]
[1644086023687,0.24197925,41755.0,41748.0,0.334906]
[1644086023889,0.05,41754.0,41748.0,0.15]
[1644086024088,0.00071195,41753.0,41748.0,0.15]
[1644086024689,0.05,41752.0,41748.0,0.15]
[1644086025089,0.05,41752.0,41748.0,0.05]
[1644086025289,0.05071196,41752.0,41747.0,0.00071204]
[1644086025488,0.05071196,41752.0,41748.0,0.334906]
[1644086025693,0.05071196,41752.0,41748.0,0.05]
[1644086025888,0.05071196,41752.0,41748.0,0.15]
[1644086026089,0.05,41752.0,41748.0,0.15]
[1644086026492,0.05071196,41752.0,41748.0,0.15]
[1644086026891,0.05071196,41752.0,41748.0,0.334906]
[1644086027334,0.05,41752.0,41748.0,0.15]
[1644086027535,0.05071196,41752.0,41749.0,0.334906]
[1644086027734,0.05071196,41752.0,41750.0,0.334906]
[1644086027935,0.05071196,41752.0,41749.0,0.15]
[1644086028137,0.05071196,41752.0,41749.0,0.1]
[1644086028340,0.05071196,41752.0,41749.0,0.15]
[1644086028536,0.05,41752.0,41748.0,0.334906]
[1644086028737,0.05,41752.0,41748.0,0.05]
[1644086028936,0.05,41752.0,41749.0,0.334906]
[1644086029338,0.05,41752.0,41747.0,0.00071205]
[1644086029537,0.05,41749.0,41747.0,0.00071205]
[1644086029736,0.05,41749.0,41743.0,0.20099318]
[1644086029938,0.05,41749.0,41747.0,0.00071204]
[1644086030336,0.05,41749.0,41748.0,0.334906]
[1644086030845,0.05,41749.0,41747.0,0.00071204]
[1644086031091,0.05,41749.0,41746.0,0.00071204]
[1644086031493,0.23169211,41748.0,41746.0,0.00071204]
[1644086032089,0.23169211,41748.0,41743.0,0.20099318]
[1644086032289,0.23169211,41748.0,41745.0,0.00071206]
[1644086032488,0.05,41747.0,41745.0,0.00071206]
[1644086032893,0.05,41747.0,41746.0,0.334906]
[1644086033091,0.23169211,41748.0,41745.0,0.00071206]
[1644086033289,0.23169211,41748.0,41743.0,0.20099318]
[1644086033493,0.23169211,41748.0,41744.0,0.33561807]
[1644086033494,0.28169211,41748.0,41744.0,0.33561807]
[1644086034091,0.28169211,41748.0,41744.0,0.00071207]
[1644086034490,0.23169211,41748.0,41743.0,0.20099318]
[1644086034737,0.05,41744.0,41743.0,0.20099318]
[1644086035144,0.05,41747.0,41743.0,0.20099318]
[1644086035336,0.11917808,41750.0,41743.0,0.53589918]
[1644086035337,0.05,41744.0,41743.0,0.53589918]
[1644086035536,0.55475146,41744.0,41743.0,0.20099318]
[1644086036141,0.50475146,41744.0,41743.0,0.20099318]
[1644086036539,0.55475146,41744.0,41743.0,0.20099318]
[1644086038142,0.88035146,41744.0,41743.0,0.20099318]
[1644086039691,0.92835146,41744.0,41743.0,0.20099318]
[1644086042241,0.4236,41744.0,41743.0,0.20099318]
[1644086042441,0.05,41744.0,41743.0,0.20099318]
[1644086043443,0.05,41747.0,41743.0,0.53589918]
[1644086043643,0.00071192,41752.0,41744.0,0.26406121]
[1644086044049,0.00071192,41752.0,41744.0,0.26326095]
[1644086044240,0.05,41755.0,41744.0,0.26326095]
[1644086044442,0.00071194,41752.0,41746.0,0.00071205]
[1644086045242,0.27361765,41752.0,41746.0,0.00071205]
[1644086045441,0.05,41751.0,41744.0,0.46326095]
[1644086045641,0.05,41751.0,41747.0,0.00071204]
[1644086045842,0.00071195,41752.0,41747.0,0.00071204]
[1644086046084,0.05071195,41752.0,41747.0,0.00071204]
[1644086046704,0.27282465,41752.0,41747.0,0.00071204]
[1644086046884,0.2735366,41752.0,41747.0,0.00071204]
[1644086047686,0.2735366,41752.0,41744.0,0.46933226]
[1644086047885,0.05,41752.0,41747.0,0.00071204]
[1644086048087,0.05071195,41752.0,41747.0,0.00071204]
[1644086048886,0.30941736,41752.0,41747.0,0.00071204]
[1644086049087,0.30870541,41752.0,41747.0,0.00071204]
[1644086049292,0.30941736,41752.0,41747.0,0.00071204]
[1644086049488,0.25941736,41752.0,41747.0,0.00071204]
[1644086050039,0.00071195,41752.0,41747.0,0.00071204]
[1644086050238,0.1201,41756.0,41747.0,0.31132078]
[1644086050438,0.00071195,41752.0,41748.0,0.048]
[1644086050638,0.00071195,41752.0,41749.0,0.334906]
[1644086050846,0.00071195,41752.0,41750.0,0.36515322]
[1644086051142,0.00071195,41752.0,41750.0,0.048]
[1644086051438,0.3625,41757.0,41751.0,0.05]
[1644086051640,0.00071195,41753.0,41752.0,0.048]
[1644086051843,0.00071195,41753.0,41752.0,0.098]
[1644086052038,0.00071195,41753.0,41752.0,0.148]
[1644086052440,0.00071195,41753.0,41752.0,0.43683922]
[1644086052640,0.38724207,41761.0,41752.0,0.43683922]
[1644086052841,0.00071193,41755.0,41752.0,0.53683922]
[1644086053808,0.38724207,41761.0,41752.0,0.53683922]
[1644086054006,0.00024499,41756.0,41752.0,0.53683922]
[1644086054207,0.38698706,41761.0,41752.0,0.53683922]
[1644086055808,0.08505263,41759.0,41752.0,0.248]
[1644086056008,0.07505263,41759.0,41752.0,0.248]
[1644086056209,0.07505263,41759.0,41752.0,0.148]
[1644086056408,0.05,41755.0,41752.0,0.148]
[1644086057013,0.36871549,41754.0,41752.0,0.1]
[1644086057238,0.36871549,41754.0,41752.0,0.05]
[1644086057638,0.085903,41750.0,41747.0,0.41583877]
[1644086057837,0.085903,41750.0,41748.0,0.334906]
[1644086058040,0.30103004,41750.0,41748.0,0.334906]
[1644086058240,0.30103004,41750.0,41743.0,0.20099318]
[1644086058441,0.05,41748.0,41744.0,0.334906]
[1644086058837,0.05,41748.0,41744.0,0.43561859]
[1644086059038,0.30103004,41750.0,41744.0,0.43561859]
[1644086059238,0.05,41748.0,41744.0,0.43561859]
[1644086059839,0.05,41748.0,41744.0,0.434906]
[1644086060041,0.05,41748.0,41744.0,0.4856186]
[1644086060240,0.05,41748.0,41745.0,0.334906]
[1644086060439,0.30103004,41750.0,41745.0,0.334906]
[1644086060639,0.37808534,41747.0,41745.0,0.434906]
[1644086062888,0.05,41748.0,41745.0,0.434906]
[1644086063488,0.30074804,41750.0,41745.0,0.434906]
[1644086063689,0.05,41748.0,41745.0,0.334906]
[1644086063889,0.30074804,41750.0,41745.0,0.334906]
[1644086064190,0.085621,41750.0,41744.0,0.00071259]
[1644086064391,0.085621,41750.0,41745.0,0.334906]
[1644086064746,0.048,41757.0,41745.0,0.33561859]
[1644086064949,0.20739373,41753.0,41746.0,0.26352456]
[1644086065347,0.2411605,41754.0,41747.0,0.05]
[1644086065546,0.38332687,41755.0,41747.0,0.05]
[1644086065745,4.85257148,41770.0,41747.0,0.05]
[1644086065746,0.4409,41760.0,41747.0,0.05]
[1644086065947,0.11472216,41757.0,41749.0,0.00071255]
[1644086066146,0.00071239,41758.0,41749.0,0.00071255]
[1644086066746,0.23527937,41757.0,41749.0,0.00071255]
[1644086066947,0.00071239,41758.0,41749.0,0.00071255]
[1644086067550,0.00071239,41758.0,41749.0,0.33266925]
[1644086067551,0.0007124,41758.0,41749.0,0.33266925]
[1644086067748,0.0007124,41758.0,41749.0,0.37988052]
[1644086067948,0.0007124,41758.0,41749.0,0.47988052]
[1644086068147,0.59960884,41759.0,41749.0,0.47916796]
[1644086068348,0.59960884,41759.0,41749.0,0.47984044]
[1644086068591,0.05067233,41758.0,41749.0,0.47984044]
[1644086068790,0.00067233,41758.0,41749.0,0.47984044]
[1644086069390,0.07186813,41754.0,41749.0,0.47916796]
[1644086069590,0.07186813,41754.0,41749.0,0.47984044]
[1644086069791,0.32570895,41754.0,41749.0,0.47984044]
[1644086070195,0.32570895,41754.0,41749.0,0.15067248]
[1644086070390,0.05,41753.0,41749.0,0.05067248]
[1644086070593,0.05,41750.0,41745.0,0.01943535]
[1644086070891,0.05,41750.0,41749.0,0.00067247]
[1644086070892,0.44085015,41750.0,41749.0,0.00067247]
[1644086071089,0.76645015,41750.0,41749.0,0.00067247]
[1644086071490,0.39085015,41750.0,41749.0,0.00067247]
[1644086071692,0.76645015,41750.0,41749.0,0.00067247]
[1644086071894,0.08622055,41744.0,41742.0,0.31764016]
[1644086072092,0.08622055,41744.0,41740.0,0.20375948]
[1644086072093,0.07122055,41744.0,41743.0,0.334906]
[1644086072539,0.07122055,41744.0,41740.0,0.31764016]
[1644086073137,0.07122055,41744.0,41740.0,0.31831543]
[1644086073737,0.07069501,41744.0,41740.0,0.31831543]
[1644086073936,0.07069501,41744.0,41740.0,0.00067527]
[1644086074136,0.07069501,41744.0,41739.0,0.32845276]
[1644086074339,0.07069501,41744.0,41740.0,0.00067527]
[1644086075139,0.07069501,41744.0,41740.0,0.05067527]
[1644086075343,0.07069501,41744.0,41741.0,0.334906]
[1644086075639,0.07069501,41744.0,41741.0,0.384906]
[1644086075994,0.07069501,41744.0,41743.0,0.334906]
[1644086076191,0.07069501,41744.0,41741.0,0.15]
[1644086076789,0.05,41742.0,41740.0,0.00067504]
[1644086076991,0.07069501,41744.0,41740.0,0.00067504]
[1644086076992,0.07069501,41744.0,41740.0,0.33558104]
[1644086077189,0.05,41741.0,41740.0,0.33558104]
[1644086077791,0.05,41741.0,41740.0,0.334906]
[1644086079291,0.07669501,41744.0,41740.0,0.334906]
[1644086079591,0.07669501,41744.0,41739.0,0.03586314]
[1644086079837,0.07669501,41744.0,41740.0,0.334906]
[1644086080437,0.07669501,41744.0,41740.0,0.33558106]
[1644086080642,0.07669501,41744.0,41740.0,0.53558106]
[1644086080839,0.07669501,41744.0,41741.0,0.334906]
[1644086081241,0.006,41744.0,41741.0,0.484906]
[1644086081441,0.006,41744.0,41743.0,0.334906]
[1644086082442,0.0874745,41744.0,41741.0,0.15]
[1644086082642,0.0874745,41744.0,41741.0,0.05]
[1644086082844,0.33146685,41744.0,41741.0,0.00067505]
[1644086083688,0.05,41743.0,41741.0,0.00067505]